Cogmind - Beta 13 @@@ ROGUE MODE // 2024.07.11 @ 00:06:33 Player: celerysam Result: Destroyed by G-34 Mercenary with Small Laser Performance ------------- Evolutions (1) 500 Regions Visited (2) 400 Robots Destroyed (10) 50 Value Destroyed (286) 286 Prototype IDs (0) 0 Alien Tech Used (0) 0 Bonus (0) 0 TOTAL SCORE: 1236 Bonus ------- None Cogmind --------- Core Integrity 0/400 Matter 176/300 Energy 265/265 System Corruption 0% Temperature Cool (6) Movement Hovering (57) Location -9/Materials Parts ------- > --- POWER (1) -------- Improved Ion Engine > --- PROPULSION (4) --- Armored Wheel Improved Hover Unit Improved Hover Unit Improved Hover Unit > --- UTILITY (2) ------ Small Storage Unit ECM Suite > --- WEAPON (2) ------- Beam Rifle Heavy Assault Rifle > --- INVENTORY (8) ---- Light Ion Engine Armored Wheel Flight Unit Flight Unit Flight Unit Flight Unit Seismic Detector Grenade Launcher Peak State ------------ > --- POWER ------------ Improved Ion Engine > --- PROPULSION ------- Armored Wheel Improved Hover Unit Improved Hover Unit Improved Hover Unit > --- UTILITY ---------- Small Storage Unit ECM Suite > --- WEAPON ----------- Beam Rifle Heavy Assault Rifle > --- INVENTORY -------- Light Ion Engine Armored Wheel Flight Unit Flight Unit Flight Unit Flight Unit Seismic Detector Grenade Launcher [Rating: 16] Favorites ----------- Power Ion Engine Engine Ion Engine Propulsion Compact Wheel Wheel Compact Wheel Hover Unit Hover Unit Utility Small Storage Unit Device ECM Suite Storage Small Storage Unit Weapon Assault Rifle Energy Gun EM Pulse Gun Ballistic Gun Assault Rifle Launcher Grenade Launcher Build | -11 -10 -9 ------- Run | Yrd Mat Mat Slots Evolved 2 | . . 2 Power . | . . . Propulsion 2 | . . 2 Utility . | . . . Weapon . | . . . Parts Attached 31 | 6 6 19 Power 6 | 1 1 4 Engine 6 | 1 1 4 Core . | . . . Reactor . | . . . Propulsion 15 | 2 2 11 Treads . | . . . Leg . | . . . Wheel 9 | 2 . 7 Hover 6 | . 2 4 Flight . | . . . Utility 2 | 1 1 . Device 1 | . 1 . Storage 1 | 1 . . Processor . | . . . Hackware . | . . . Protection . | . . . Artifact . | . . . Weapon 8 | 2 2 4 Energy Gun 3 | 1 . 2 Energy Cannon . | . . . Ballistic Gun 4 | 1 2 1 Ballistic Cannon . | . . . Launcher 1 | . . 1 Special Weapon . | . . . Impact Weapon . | . . . Slashing Weapon . | . . . Piercing Weapon . | . . . Special Melee Weapon . | . . . Unidentified Prototypes . | . . . Parts Lost 10 | . . 10 Power 2 | . . 2 Propulsion 6 | . . 6 Utility . | . . . Weapon 2 | . . 2 Highest Loss Streak 8 | . . 8 To Critical Strikes . | . . . Average Slot Usage (%) 83 | . 85 81 Engine 12 | . 14 10 Wheel 16 | . 9 24 Hover 13 | . 18 9 Device 9 | . 8 11 Storage 12 | . 14 11 Energy Gun 6 | . 5 6 Ballistic Gun 10 | . 14 7 Naked Turns . | . . . Heaviest Build 20 | 14 14 20 Greatest Support 52 | 32 32 52 Greatest Overweight (x) 2 | . . 2 Average Overweight (x) . | . . . Largest Inventory Capacity 8 | 8 8 8 Average Capacity 7 | 6 8 8 Most Carried 8 | 6 8 8 Average Carried 7 | 3 7 7 Final Capacity 8 | 8 8 8 Final Carried 8 | 6 8 8 Class Distribution -------------------- 100% | Mutant Dominant Class ---------------- Mutant | -10/Materials Mutant | -9/Materials Resources | -11 -10 -9 ----------- Run | Yrd Mat Mat Matter Collected 421 | 260 76 85 Remotely . | . . . Salvage Created 262 | . 89 173 Parts 22 | . 10 12 Haulers Intercepted . | . . . Recyclers Shooed 1 | . . 1 Parts Field Recycled . | . . . Retrieved Matter . | . . . Parts Self-Destructed . | . . . Prevented . | . . . Kills | -11 -10 -9 ------- Run | Yrd Mat Mat Combat Hostiles Destroyed 8 | . 2 6 Guns 4 | . 2 2 AOE 4 | . . 4 Classes Destroyed 5 | . 2 3 Mechanic 1 | . . 1 Watcher 1 | . 1 . Swarmer 2 | . . 2 Grunt 3 | . 2 1 Sentry 3 | . . 3 Best Kill Streak 5 | . 2 5 Combat Bots Only 4 | . 2 4 Max Kills in Single Turn 2 | . 1 2 Gunslinging . | . . . Exploded 2 | . . 2 Melee . | . . . Uniques/NPCs Destroyed . | . . . Combat | -11 -10 -9 -------- Run | Yrd Mat Mat Hostile Shots Fired 172 | . 19 153 Missed 53 | . 9 44 Damage Taken 1423 | . 117 1306 Core 425 | . 23 402 Absorbed by Shields . | . . . Core Remaining (%) 95 | 100 90 . Volleys Fired 23 | . 9 14 Largest 2 | . 2 2 Hottest 79 | . 60 79 Shots Fired 33 | . 10 23 Gun 28 | . 10 18 Cannon . | . . . Launcher 5 | . . 5 Special . | . . . Kinetic 18 | . 9 9 Thermal 5 | . . 5 Explosive 5 | . . 5 Electromagnetic 5 | . 1 4 Robot Hit Streak 16 | . 6 16 Robot Miss Streak 2 | . 1 2 Penetration Max . | . . . Secondary Targets 2 | . . 2 Max Gunslinging Chain 1 | . . 1 Shots Hit Robots 26 | . 8 18 Core Hits 20 | . 5 15 Critical Kills . | . . . Critical Parts Destroyed 1 | . . 1 Critical Strikes 2 | . . 2 Burn 1 | . . 1 Destroy 1 | . . 1 Melee Attacks . | . . . Impact . | . . . Slashing . | . . . Piercing . | . . . Sneak Attacks . | . . . Combat Hostiles . | . . . Follow-up Attacks . | . . . Damage Inflicted 612 | . 100 512 Guns 308 | . 93 215 Cannons . | . . . Explosions 283 | . . 283 Melee . | . . . Ramming 21 | . 7 14 Kinetic 213 | . 93 120 Thermal 129 | . . 129 Explosive 227 | . . 227 Electromagnetic 22 | . . 22 Impact . | . . . Slashing . | . . . Piercing . | . . . Highest Corruption . | . . . Average Corruption . | . . . Corruption Purged . | . . . Corruption Blocked . | . . . Overload Shots . | . . . Overflow Damage 21 | . . 21 Projectiles . | . . . Explosions 21 | . . 21 Melee . | . . . Knockbacks . | . . . Impact . | . . . Kinetic . | . . . Secondary . | . . . Self-Inflicted Damage 56 | . 3 53 Shots 1 | . . 1 Rammed 6 | . 1 5 Targets Rammed 6 | . 1 5 Kicked . | . . . Crushed . | . . . Highest Temperature 99 | . 1 99 Average Temperature 37 | . 1 38 Received Heat Transfer 450 | . 63 387 Siege Activations . | . . . Robots Corrupted . | . . . Combat Hostiles . | . . . Parts Fried . | . . . Impact Corruptions . | . . . Robots Melted . | . . . Combat Hostiles . | . . . Parts Melted 3 | . . 3 Heat Transferred 309 | . . 309 Parts Sabotaged . | . . . Parts Stolen . | . . . Parts Stripped . | . . . Power Chain Reactions 1 | . . 1 Alert | -11 -10 -9 ------- Run | Yrd Mat Mat Peak Influence 213 | . 117 213 Initial 49 | . . 49 Average 61 | . 41 99 Maximum Alert Level 1 | . . 1 Low Security (%) 99 | 100 100 98 Level 1 . | . . 1 Level 2 . | . . . Level 3 . | . . . Level 4 . | . . . Level 5 . | . . . High Security . | . . . Max Security . | . . . Squads Dispatched 2 | . 1 1 Investigation . | . . . Extermination . | . . . Reinforcement 2 | . 1 1 Assault . | . . . Garrison . | . . . Intercept . | . . . Searches Triggered . | . . . Construction Impeded . | . . . Haulers Reinforced . | . . . Active Scanning Responses . | . . . Cargo Convoy Interrupts . | . . . Stealth | -11 -10 -9 --------- Run | Yrd Mat Mat Distress Signals . | . . . Communications Jammed . | . . . Distress Signals . | . . . Times Spotted 33 | . 15 18 Peak Tracking Total 6 | . 5 6 Tactical Retreats 5 | . 3 2 Traps | -11 -10 -9 ------- Run | Yrd Mat Mat Traps Triggered . | . . . Indirectly . | . . . Trap Hack Attempts . | . . . Triggered . | . . . Disarmed 2 | . 2 . Reprogrammed . | . . . Reused . | . . . Traps Extracted . | . . . Installed . | . . . Triggered . | . . . Machines | -11 -10 -9 ---------- Run | Yrd Mat Mat Machines Disabled . | . . . Max in Single Turn . | . . . Machines Repaired . | . . . Machines Dismantled . | . . . Machines Sabotaged . | . . . Overloaded Fab Kills . | . . . Hacking | -11 -10 -9 --------- Run | Yrd Mat Mat Machines Accessed 3 | . 2 1 Terminals 2 | . 1 1 Fabricators . | . . . Repair Stations . | . . . Recycling Units 1 | . 1 . Scanalyzers . | . . . Garrison Access . | . . . Total Hacks 4 | . 3 1 Successful 4 | . 3 1 Failed . | . . . Catastrophic . | . . . Database Lockouts . | . . . Manual . | . . . Terminals 3 | . 2 1 Fabricators . | . . . Repair Stations . | . . . Recycling Units 1 | . 1 . Scanalyzers . | . . . Garrison Access . | . . . Terminal Hacks 3 | . 2 1 Record 1 | . . 1 Locate Traps 1 | . 1 . Disarm Traps 1 | . 1 . Fabricator Hacks . | . . . Repair Station Hacks . | . . . Recycling Unit Hacks 1 | . 1 . Report Inventory 1 | . 1 . Scanalyzer . | . . . Garrison Access Hacks . | . . . Unauthorized Hacks . | . . . Terminals . | . . . Fabricators . | . . . Repair Stations . | . . . Recycling Units . | . . . Scanalyzers . | . . . Garrison Access . | . . . Data Cores Recovered . | . . . Used . | . . . Hacking Detections 1 | . 1 . Full Trace Events . | . . . Feedback Events . | . . . Feedback Blocked . | . . . Robot Schematics Acquired . | . . . Robots Built . | . . . Authchips . | . . . Time . | . . . Total Robot Build Rating . | . . . Part Schematics Acquired . | . . . Parts Built . | . . . Authchips . | . . . Time . | . . . Total Part Build Rating . | . . . Parts Repaired . | . . . Time . | . . . Parts Recycled . | . . . Recycled Matter . | . . . Retrieved Matter . | . . . Retrieved Components . | . . . Parts Scanalyzed . | . . . Part Schematics Acquired . | . . . Parts Damaged . | . . . Bothacking | -11 -10 -9 ------------ Run | Yrd Mat Mat Used RIF Installer . | . . . Robots Hacked . | . . . Non-combat . | . . . Combat . | . . . Robot Hacks Applied . | . . . Relay Couplers Released . | . . . Fabnet Peak Effective % . | . . . Robots Rewired . | . . . Allies Hacked . | . . . Hacks Repelled . | . . . Allies | -11 -10 -9 -------- Run | Yrd Mat Mat Total Allies . | . . . Largest Group . | . . . Highest-Rated Group . | . . . Highest-Rated Ally . | . . . Total Orders . | . . . Ally Attacks . | . . . Total Damage . | . . . Kills . | . . . Allies Corrupted . | . . . Allies Melted . | . . . Intel | -11 -10 -9 ------- Run | Yrd Mat Mat Robot Analysis Total . | . . . Derelict Logs Recovered . | . . . Drone Launches . | . . . Drone Recoveries . | . . . Exploration | -11 -10 -9 ------------- Run | Yrd Mat Mat Turns Passed 558 | 65 256 237 Spaces Moved 562 | 54 331 177 Core 12 | 12 . . Treads . | . . . Legs . | . . . Wheels 212 | 42 79 91 Hover 338 | . 252 86 Flight . | . . . Fastest Speed 50 | 50 56 52 Average Speed 72 | 88 66 77 Slowest Speed 195 | 100 100 195 Overloaded Moves . | . . . Propulsion Burnouts . | . . . Robots Hopped . | . . . Cave-ins Triggered . | . . . Exploration Rate (%) 30 | 4 63 25 Regions Visited 2 Branch Regions . Pre-discovered Areas . | . . . Known Exits Taken . | . . . Unknown Exits Taken 2 | 1 1 . Scrap Searched . | . . . Spaces Dug . | . . . Terrain Destroyed 25 | . . 25 Melee . | . . . Projectile . | . . . AOE 25 | . . 25 Terrain Rammed . | . . . Walls Destroyed . | . . . Machines Disabled . | . . . Actions | -11 -10 -9 --------- Run | Yrd Mat Mat Total 673 | 70 355 248 Wait 23 | . . 23 Move 560 | 53 330 177 Hop . | . . . Pick Up 22 | 11 5 6 Fast Attach 12 | 1 1 10 Attach 10 | 5 . 5 Detach . | . . . Swap 9 | . 5 4 Drop 8 | . 4 4 Fire 23 | . 9 14 Melee . | . . . Ram 6 | . 1 5 Kick . | . . . Crush . | . . . Escape Stasis . | . . . Rewire . | . . . Trap . | . . . Miscellaneous . | . . . Route ------- -11/Scrapyard -10/Materials (discovered 2 exits: *Mat / [*Min]) -9/Materials History --------- Turn | Location | Event 2 | -11/Scrapyard | Met Revision 17 14 | -11/Scrapyard | Discovered new exit (range 14) 66 | -11/Scrapyard | Entered Materials 198 | -10/Materials | Discovered new exit (range 15) 301 | -10/Materials | Build established: Mutant 313 | -10/Materials | Discovered new exit (range 16) 322 | -10/Materials | Entered another Materials area 322 | -9/Materials | Evolved 2 slots: Propulsion x2 420 | -9/Materials | Core integrity fell below 50% 458 | -9/Materials | Lost 8 parts (1p5n2w) 528 | -9/Materials | Core integrity fell below 20% 559 | -9/Materials | Destroyed by G-34 Mercenary with Small Laser Last Messages --------------- 00511_ Switching to secondary target: Y-45 Defender. 00511_ Y-45 Defender suffers critical hit (Destroy). 00511_ Destroyed Hvy. Assault Rifle. 00516_ Critical hit (Burn: +37). 00521_ Ion Engine destroyed. 00521_ Arm. Wheel destroyed. 00524_ T-07 Excavator is excavating. 00524_ Y-45 Defender suffers critical hit (Burn). 00524_ Lgt. Treads melted. 00524_ Heat Sink melted. 00524_ Y-45 Defender destroyed. 00524_ Switching to secondary target: Y-45 Defender. 00524_ Terminal disabled. 00529_ Acquired Imp. Ion Engine. 00530_ Acquired 47 matter. 00534_ Acquired Imp. Hover Unit. 00538_ Dropped Arm. Wheel. 00542_ Acquired Imp. Hover Unit. 00545_ Dropped Com. Wheel. 00545_ Acquired Imp. Hover Unit. Map ----- +----------------------------------------------------+ | ??????????????????????????????????????????? | | ??????????????????????????????????????????? | | ??????????????????????????????????????????? | | ??????????????????????????????????????????? | | ??????????????????????????????????????????? | | ??????????????????????????????????????????? | | ??????????????????????????????????????????? | | ??????????????????????????????????????????? | | ??????????????????????????????????????????? | | ??????????????????????????????????????????? | | ?????????????????????????????????????#+#??? | | ?????????????????????????????????????# #??? | | ????????????????????????????########## #??? | | ???????????????????????????? # #??? | | ???????????????????????????? # #### | | ????????????????######?????? """ """ # | | ????????????????k ! #?????# """ """ + | | ????????????????# #?????# """ """ # | | ????????????????#w #?????# # ## | | ????????????????# #?????# "T" # #? | | ????????????????# #????# """ + #? | | ????????????????# a ####?############## #? | | ????????????????#g # ### ########???# #? | | ????????????????# # ## #???# #? | | ????????????????# # ?# """ #???# #? | | ??????? ### ##@#### ### "R #???# #? | | ??????# # """ =#???# #? | | ??????# + """ !! #???# #? | | ??????# ### ########+#+# ! ##### #? | | ?????????????#??????# # != # ## | | ????????????????????# T # =#* | | ????????????????????# # [/ % | | ????????????????????#]]] !##########= | | ????????????????????#]]] #????????# ## | | ????????????????????#]]] #????????###"###? | | ????????????????????# *#????????? ?? | | ????????????????????##### #??????? | | ?????????????????????????##??????# | | ?????????????????????????????????# | | ?????????????????????????????????# ! | | ?????????????????????????????????# | | ?????????????????????????????????# | | ?????????????????????????????????# | | ?????????????????????????????????########## | | | | | | | | | | | | | +----------------------------------------------------+ Best States ------------- Heat Dissipation 28 Energy Generation 12 Energy Capacity 265 Matter Stores 300 Matter Capacity 300 Sight Range 16 Terrain Scan Density 10 ECM Strength 1 Evasion (%) 54 Item Schematics ----------------- None Robot Schematics ------------------ None Fabricated ------------ Nothing Alien Tech Used ----------------- None Achievements -------------- None Challenges ------------ None Game ------ Seed SapperNetworkPit Manual? 0 Play Time 00:11:25 Cumulative 93.5 hours Start 2024.07.10 @ 23:53:24 End 2024.07.11 @ 00:06:33 Sessions 1 Manual Loads 0 Difficulty Rogue Special Mode None Game No. 135 Rogue 135 Adventurer 0 Explorer 0 Win Type - Total 0 Types 0/0/0/0/0/0/0/0/0 Lore% 42 Gallery% 55 Achievement% 35 Wizard Run 0 Options --------- Layout 0 ASCII 0 Keyboard 0 Movement Mouse Keybinds 0 Fullscreen 1 Font 24/Smallcaps Map View 76x50 Zoom Use 0% Tactical HUD 1 Map Filters NONE Filters NONE Steam 1 RUN: 900b5cd9-b4fd-4857-b96c-38536c068fb7